Cogmind - Beta 13 X1 @@@ ROGUE MODE // 2023.09.14 @ 16:03:16 Player: VR-DUX Result: Destroyed by D-53 Grenadier with Mini Grenade Launcher Performance ------------- Evolutions (0) 0 Regions Visited (2) 400 Robots Destroyed (15) 75 Value Destroyed (267) 267 Prototype IDs (0) 0 Alien Tech Used (0) 0 Bonus (0) 0 TOTAL SCORE: 742 Bonus ------- None Cogmind --------- Core Integrity 0/250 Matter 148/300 Energy 55/100 System Corruption 3% Temperature Cool (45) Movement Treading (480) Ox4 Location -10/Mines Parts ------- > --- POWER (1) -------- (None) > --- PROPULSION (2) --- Light Treads Aluminum Leg > --- UTILITY (2) ------ Huge Storage Unit Structural Scanner > --- WEAPON (2) ------- Assault Rifle > --- INVENTORY (25) --- Aluminum Leg Aluminum Leg Aluminum Leg Compact Wheel Flight Unit Flight Unit Flight Unit Flight Unit Medium Storage Unit Large Storage Unit High-capacity Matter Pod (200) High-capacity Matter Pod (35) Machine Analyzer Sensor Array Signal Interpreter Hardened Light Armor Plating Small Laser Light Assault Rifle Light Assault Rifle Light Cannon Light Cannon Datajack Peak State ------------ > --- POWER ------------ Light Ion Engine > --- PROPULSION ------- Light Treads Light Treads > --- UTILITY ---------- Huge Storage Unit Structural Scanner > --- WEAPON ----------- Light Cannon Improved Light Cannon > --- INVENTORY -------- Light Treads Aluminum Leg Aluminum Leg Aluminum Leg Aluminum Leg Compact Wheel Flight Unit Flight Unit Flight Unit Flight Unit Medium Storage Unit Large Storage Unit High-capacity Matter Pod High-capacity Matter Pod Machine Analyzer Sensor Array Signal Interpreter Hardened Light Armor Plating Small Laser Assault Rifle Light Assault Rifle Light Assault Rifle Light Cannon Light Cannon Datajack [Rating: 10] Favorites ----------- Power Ion Engine Engine Ion Engine Propulsion Compact Wheel Treads Light Treads Leg Aluminum Leg Wheel Compact Wheel Utility Huge Storage Unit Device Structural Scanner Storage Huge Storage Unit Weapon Assault Rifle Ballistic Gun Assault Rifle Ballistic Cannon Improved Light Cannon Build | -11 -10 -10 ------- Run | Jun Mat Min Slots Evolved . | . . . Power . | . . . Propulsion . | . . . Utility . | . . . Weapon . | . . . Parts Attached 18 | . 12 6 Power 1 | . 1 . Engine 1 | . 1 . Core . | . . . Reactor . | . . . Propulsion 11 | . 8 3 Treads 6 | . 4 2 Leg 3 | . 2 1 Wheel 2 | . 2 . Hover . | . . . Flight . | . . . Utility 3 | . 3 . Device 1 | . 1 . Storage 2 | . 2 . Processor . | . . . Hackware . | . . . Protection . | . . . Artifact . | . . . Weapon 3 | . . 3 Energy Gun . | . . . Energy Cannon . | . . . Ballistic Gun 1 | . . 1 Ballistic Cannon 2 | . . 2 Launcher . | . . . Special Weapon . | . . . Impact Weapon . | . . . Slashing Weapon . | . . . Piercing Weapon . | . . . Special Melee Weapon . | . . . Unidentified Prototypes . | . . . Parts Lost 6 | . 1 5 Power 2 | . 1 1 Propulsion 2 | . . 2 Utility . | . . . Weapon 2 | . . 2 Highest Loss Streak 5 | . 1 5 To Critical Strikes . | . . . Average Slot Usage (%) 87 | . 87 97 Engine 13 | . 14 11 Treads 9 | . 8 25 Leg 1 | . 2 . Wheel 11 | . 11 2 Device 7 | . 7 14 Storage 14 | . 14 14 Ballistic Gun 26 | . 28 4 Ballistic Cannon 1 | . . 23 Naked Turns . | . . . Heaviest Build 91 | 13 89 91 Greatest Support 40 | 20 40 40 Greatest Overweight (x) 5 | . 5 5 Average Overweight (x) 4 | . 4 3 Largest Inventory Capacity 25 | . 25 25 Average Capacity 22 | . 22 25 Most Carried 25 | . 25 25 Average Carried 15 | . 15 24 Final Capacity 25 | 8 25 25 Final Carried 25 | 6 25 22 Class Distribution -------------------- 100% | Mutant Dominant Class ---------------- Mutant | -10/Materials Mutant | -10/Mines Resources | -11 -10 -10 ----------- Run | Jun Mat Min Matter Collected 769 | 186 580 3 Remotely . | . . . Salvage Created 624 | . 607 17 Parts 32 | . 32 . Haulers Intercepted 1 | . 1 . Recyclers Shooed 2 | . 2 . Parts Field Recycled . | . . . Retrieved Matter . | . . . Parts Self-Destructed . | . . . Prevented . | . . . Kills | -11 -10 -10 ------- Run | Jun Mat Min Combat Hostiles Destroyed 11 | . 8 3 Guns 8 | . 8 . Cannons 3 | . . 3 Classes Destroyed 8 | . 7 1 Builder 1 | . 1 . Hauler 1 | . 1 . Recycler 3 | . 3 . Mechanic 1 | . 1 . Watcher 1 | . 1 . Swarmer 3 | . 3 . Grunt 5 | . 5 . Assembled 3 | . . 3 Best Kill Streak 5 | . 5 3 Combat Bots Only 5 | . 5 3 Max Kills in Single Turn 1 | . 1 1 Gunslinging . | . . . Exploded . | . . . Melee . | . . . Uniques/NPCs Destroyed . | . . . Combat | -11 -10 -10 -------- Run | Jun Mat Min Damage Taken 996 | . 350 646 Core 262 | . 86 176 Absorbed by Shields . | . . . Core Remaining (%) 100 | 100 . . Volleys Fired 70 | . 58 12 Largest 2 | . 2 2 Hottest 74 | . 40 74 Shots Fired 139 | . 118 21 Gun 119 | . 118 1 Cannon 20 | . . 20 Launcher . | . . . Special . | . . . Kinetic 139 | . 118 21 Thermal . | . . . Explosive . | . . . Electromagnetic . | . . . Robot Hit Streak 11 | . 11 5 Robot Miss Streak 3 | . 3 3 Penetration Max . | . . . Secondary Targets 2 | . 2 . Max Gunslinging Chain 1 | . 1 . Shots Hit Robots 93 | . 82 11 Core Hits 38 | . 33 5 Critical Kills 1 | . 1 . Critical Parts Destroyed . | . . . Critical Strikes 1 | . 1 . Destroy 1 | . 1 . Melee Attacks . | . . . Impact . | . . . Slashing . | . . . Piercing . | . . . Sneak Attacks . | . . . Combat Hostiles . | . . . Follow-up Attacks . | . . . Damage Inflicted 1083 | . 864 219 Guns 878 | . 864 14 Cannons 205 | . . 205 Explosions . | . . . Melee . | . . . Ramming . | . . . Kinetic 1083 | . 864 219 Thermal . | . . . Explosive . | . . . Electromagnetic . | . . . Impact . | . . . Slashing . | . . . Piercing . | . . . Highest Corruption 3 | . 3 3 Average Corruption 2 | . 2 3 Corruption Purged . | . . . Corruption Blocked . | . . . Effects 18 | . 15 3 Message Errors 4 | . 4 . Matter Fused 2 | . 1 1 Heat Flow Errors 4 | . 4 . Energy Discharges 2 | . 2 . Parts Fused 1 | . 1 . Data Loss (minor) 2 | . 1 1 Misfires 2 | . 2 . Weapon Failures 1 | . . 1 Overload Shots . | . . . Overflow Damage 9 | . . 9 Projectiles 9 | . . 9 Explosions . | . . . Melee . | . . . Knockbacks 8 | . . 8 Impact . | . . . Kinetic 5 | . . 5 Secondary 3 | . . 3 Self-Inflicted Damage . | . . . Shots . | . . . Rammed . | . . . Targets Rammed . | . . . Kicked . | . . . Crushed . | . . . Highest Temperature 268 | . 268 188 Average Temperature 87 | . 70 118 Received Heat Transfer 274 | . 174 100 Siege Activations . | . . . Robots Corrupted . | . . . Combat Hostiles . | . . . Parts Fried . | . . . Impact Corruptions . | . . . Robots Melted . | . . . Combat Hostiles . | . . . Parts Melted . | . . . Heat Transferred . | . . . Parts Sabotaged . | . . . Parts Stolen . | . . . Parts Stripped . | . . . Power Chain Reactions . | . . . Missiles Intercepted . | . . . Alert | -11 -10 -10 ------- Run | Jun Mat Min Peak Influence 155 | . 155 . Initial . | . . . Average 52 | . 54 . Maximum Alert Level . | . . . Low Security (%) 100 | . 100 100 Level 1 . | . . . Level 2 . | . . . Level 3 . | . . . Level 4 . | . . . Level 5 . | . . . High Security . | . . . Max Security . | . . . Squads Dispatched 1 | . 1 . Investigation 1 | . 1 . Extermination . | . . . Reinforcement . | . . . Assault . | . . . Garrison . | . . . Intercept . | . . . Searches Triggered . | . . . Construction Impeded . | . . . Haulers Reinforced . | . . . Active Scanning Responses . | . . . Cargo Convoy Interrupts . | . . . Stealth | -11 -10 -10 --------- Run | Jun Mat Min Distress Signals . | . . . Communications Jammed . | . . . Distress Signals . | . . . Times Spotted 37 | . 16 21 Peak Tracking Total 13 | . 5 13 Tactical Retreats . | . . . Traps | -11 -10 -10 ------- Run | Jun Mat Min Traps Triggered 2 | . 2 . Indirectly . | . . . Trap Hack Attempts . | . . . Triggered . | . . . Disarmed . | . . . Reprogrammed . | . . . Reused . | . . . Traps Extracted . | . . . Installed . | . . . Triggered . | . . . Machines | -11 -10 -10 ---------- Run | Jun Mat Min Machines Disabled . | . . . Max in Single Turn . | . . . Machines Repaired . | . . . Machines Sabotaged . | . . . Overloaded Fab Kills . | . . . Hacking | -11 -10 -10 --------- Run | Jun Mat Min Machines Accessed 6 | . 6 . Terminals 4 | . 4 . Fabricators . | . . . Repair Stations . | . . . Recycling Units 2 | . 2 . Scanalyzers . | . . . Garrison Access . | . . . Total Hacks 16 | . 16 . Successful 9 | . 9 . Failed 7 | . 7 . Catastrophic 2 | . 2 . Database Lockouts . | . . . Manual 7 | . 7 . Terminals 12 | . 12 . Fabricators . | . . . Repair Stations . | . . . Recycling Units 4 | . 4 . Scanalyzers . | . . . Garrison Access . | . . . Terminal Hacks 6 | . 6 . Record 1 | . 1 . Robot Analysis 3 | . 3 . Branch Access Points 1 | . 1 . Zone Layout 1 | . 1 . Fabricator Hacks . | . . . Repair Station Hacks . | . . . Recycling Unit Hacks 2 | . 2 . Retrieve Components 2 | . 2 . Scanalyzer . | . . . Garrison Access Hacks . | . . . Unauthorized Hacks 1 | . 1 . Terminals 1 | . 1 . Botnet 1 | . 1 . Fabricators . | . . . Repair Stations . | . . . Recycling Units . | . . . Scanalyzers . | . . . Garrison Access . | . . . Data Cores Recovered . | . . . Used . | . . . Hacking Detections 4 | . 4 . Full Trace Events 1 | . 1 . Feedback Events . | . . . Feedback Blocked . | . . . Robot Schematics Acquired . | . . . Robots Built . | . . . Authchips . | . . . Time . | . . . Total Robot Build Rating . | . . . Part Schematics Acquired . | . . . Parts Built . | . . . Authchips . | . . . Time . | . . . Total Part Build Rating . | . . . Parts Repaired . | . . . Time . | . . . Parts Recycled . | . . . Recycled Matter . | . . . Retrieved Matter . | . . . Retrieved Components 7 | . 7 . Parts Scanalyzed . | . . . Part Schematics Acquired . | . . . Parts Damaged . | . . . Bothacking | -11 -10 -10 ------------ Run | Jun Mat Min Used RIF Installer . | . . . Robots Hacked . | . . . Non-combat . | . . . Combat . | . . . Robot Hacks Applied . | . . . Relay Couplers Released . | . . . Fabnet Peak Effective % . | . . . Robots Rewired . | . . . Allies Hacked . | . . . Hacks Repelled . | . . . Allies | -11 -10 -10 -------- Run | Jun Mat Min Total Allies . | . . . Largest Group . | . . . Highest-Rated Group . | . . . Highest-Rated Ally . | . . . Total Orders . | . . . Ally Attacks . | . . . Total Damage . | . . . Kills . | . . . Allies Corrupted . | . . . Allies Melted . | . . . Intel | -11 -10 -10 ------- Run | Jun Mat Min Robot Analysis Total 3 | . 3 . Derelict Logs Recovered . | . . . Drone Launches . | . . . Drone Recoveries . | . . . Exploration | -11 -10 -10 ------------- Run | Jun Mat Min Turns Passed 1298 | . 1233 65 Spaces Moved 595 | 1 585 9 Core . | . . . Treads 27 | . 21 6 Legs 60 | 1 59 . Wheels 508 | . 505 3 Hover . | . . . Flight . | . . . Fastest Speed 120 | 120 120 175 Average Speed 172 | 120 171 271 Slowest Speed 320 | 120 320 320 Overloaded Moves . | . . . Propulsion Burnouts . | . . . Robots Hopped . | . . . Cave-ins Triggered . | . . . Exploration Rate (%) 36 | 2 95 12 Regions Visited 2 Branch Regions 1 Pre-discovered Areas . | . . . Known Exits Taken 1 | . 1 . Unknown Exits Taken 1 | 1 . . Scrap Searched . | . . . Spaces Dug . | . . . Terrain Destroyed 1 | . . 1 Melee . | . . . Projectile 1 | . . 1 AOE . | . . . Terrain Rammed . | . . . Walls Destroyed . | . . . Machines Disabled . | . . . Actions | -11 -10 -10 --------- Run | Jun Mat Min Total 738 | . 711 27 Wait 28 | . 28 . Move 593 | . 584 9 Hop . | . . . Pick Up 23 | . 23 . Fast Attach 3 | . 3 . Attach 5 | . 2 3 Detach 1 | . 1 . Swap 10 | . 7 3 Drop 5 | . 5 . Fire 70 | . 58 12 Melee . | . . . Ram . | . . . Kick . | . . . Crush . | . . . Escape Stasis . | . . . Rewire . | . . . Trap . | . . . Miscellaneous . | . . . Route ------- -11/Junkyard -10/Materials (discovered 5 exits: [*Mat x3] / *Min / [*Sub]) -10/Mines History --------- Turn | Location | Event 1 | -11/Junkyard | Discovered new exit (range 0) 1 | -11/Junkyard | Entered Materials 228 | -10/Materials | Identified exit to Mines 304 | -10/Materials | Build established: Mutant 407 | -10/Materials | Discovered new exit (range 15) 867 | -10/Materials | Discovered new exit (range 6) 960 | -10/Materials | Discovered new exit (range 8) 1083 | -10/Materials | Discovered new exit (range 10) 1234 | -10/Materials | Entered Mines 1235 | -10/Mines | Assembled infested the area 1286 | -10/Mines | Core integrity fell below 50% 1294 | -10/Mines | Core integrity fell below 20% 1299 | -10/Mines | Destroyed by D-53 Grenadier with Mini Grenade Launcher Last Messages --------------- 01290_ System corrupted: Lgt. Cannon jammed. 01291_ Acquired 3 matter. 01291_ Lgt. Treads destroyed. 01291_ as-40471 destroyed. 01292_ System corrupted: Component data lost. 01292_ Lgt. Cannon destroyed. 01293_ as-05185 destroyed. 01293_ as-68621 destroyed. 01293_ as-09267 destroyed. 01293_ as-10507 destroyed. 01293_ as-42796 destroyed. 01293_ as-04446 destroyed. 01293_ Lgt. Treads destroyed. 01295_ The unstable cave ceiling collapses. 01295_ Imp. Light Cannon destroyed. 01295_ D-53 Grenadier destroyed. 01295_ as-43947 destroyed. 01296_ The unstable cave ceiling collapses. 01298_ Destroyed Shock Absorption System. 01299_ K-01 Serf collects debris. Map ----- +----------------------------------------------------+ | ???????????????????????????????????????????? | | ???????????????????????????????????????????? | | ???????????????????????????????????????????? | | ???????????????????????????????????????????? | | ???????????????????????????????????????????? | | ???????????????????????????????????????????? | | ???????????????????????????###?????????????? | | ??????????????????????????? ####???????????? | | ??????????????????????###?? ####??????????? | | ?????????????????????####??? ##??????????? | | ?????????????????????### ???" #??????????? | | ?????????????????????## """ ???????????? | | ?????????????????????## """ ??????????? | | ???????????????????????? ##??????????? | | ????????????????????????? ###?????????? | | ????????????###??????????## ###?????????? | | ????????????###??????????### ###????????? | | ???????????? ???????????### #####??????? | | ???????????? ????######## % #####?????? | | ????????????? ######### % ####????? | | ?????????????? #### ## #####??? | | ??????????????? # % ####??? | | ????????????????""" # ##??? | | ????????????????""" ##??? | | ???????????## """ # ##??? | | ??????????### @ ### ###??? | | ??????????## u d ##### ####??? | | ?????????? k ##########???? | | ??????????? ###??#####????? | | ??????????? ## # ##???????????? | | ???????????? ############???????????? | | ???????????? ??###########???????????? | | ???????????? #####????????????????????????? | | ?????????????######????????????????????????? | | ???????????????????????????????????????????? | | ???????????????????????????????????????????? | | ???????????????????????????????????????????? | | ???????????????????????????????????????????? | | ???????????????????????????????????????????? | | ???????????????????????????????????????????? | | ???????????????????????????????????????????? | | ???????????????????????????????????????????? | | ???????????????????????????????????????????? | | | | | | | | | | | | | | | +----------------------------------------------------+ Best States ------------- Heat Dissipation 25 Energy Generation 10 Energy Capacity 250 Matter Stores 300 Matter Capacity 300 Sight Range 16 Terrain Scan Density 10 Evasion (%) 55 Recoil Reduction 2 Item Schematics ----------------- None Robot Schematics ------------------ None Fabricated ------------ Nothing Alien Tech Used ----------------- None Achievements -------------- None Challenges ------------ None Game ------ Seed BattleChipMultitool Manual? 0 Play Time 00:13:43 Cumulative 142.5 hours Start 2023.09.14 @ 15:48:38 End 2023.09.14 @ 16:03:16 Sessions 1 Manual Loads 0 Difficulty Rogue Special Mode None Game No. 97 Rogue 97 Adventurer 0 Explorer 0 Win Type - Total 3 Types 2/0/1/0/0/0/0/0/0 Lore% 48 Gallery% 47 Achievement% 45 Wizard Run 0 Options --------- ASCII 0 Keyboard 0 Movement Mouse Keybinds 0 Fullscreen 1 Font 18/SmallcapsGlow Map View 76x50 Tactical HUD 1 Map Filters NONE Filters NONE Steam X RUN: 5dc3ae00-a13e-4880-a554-a54ad022ced8